[Event "NED-ch U20 Youth 2019"]
[Site "Assen"]
[Date "2019.04.28"]
[Round "1.1"]
[White "Van Foreest, Machteld"]
[Black "Warmerdam, Max"]
[Result "0-1"]
[ECO "A59"]
[WhiteElo "2065"]
[BlackElo "2472"]
[Annotator "RC"]
[PlyCount "56"]
[EventDate "2019.04.28"]
[EventType "swiss"]
[EventCountry "NED"]
[SourceTitle "playchess.com"]
[Source "ChessBase"]
[SourceQuality "1"]
[TimeControl "40/5400+30:1800+30"]

1. d4 {[%emt 0:00:00]} Nf6 {[%emt 0:02:00]} 2. c4 {[%emt 0:00:00]} c5 {[%emt 0:00:40]} 3. d5 {[%emt 0:00:00]} b5 {[%emt 0:01:06]} 4. cxb5 {[%emt 0:00:00]} a6 {[%emt 0:00:06]} 5. bxa6 {[%emt 0:00:00]} g6 {[%emt 0:00:51]} 6. Nc3 {[%emt 0:00:55]} Bxa6 {[%emt 0:00:11]} 7. e4 {[%emt 0:00:14]} Bxf1 {[%emt 0:00:06]} 8. Kxf1 {[%emt 0:00:03]} d6 {[%emt 0:00:14]} 9. Nf3 {[%emt 0:00:09]} Bg7 {[%emt 0:00:08]} 10. g3 {[%emt 0:00:07]} O-O {[%emt 0:00:33]} 11. Kg2 {[%emt 0:00:04]} Nbd7 {[%emt 0:01:37]} 12. Re1 {[%emt 0:03:07]} Ra6 {[%emt 0:13:57]} 13. Qe2 {[%emt 0:04:09]} Qa8 {[%emt 0:01:14]} 14. Bf4 {[%emt 0:02:24]} Ng4 {[%emt 0:02:53]} 15. Bg5 {[%emt 0:09:14]} Rb8 {[%emt 0:42:19]} 16. a4 {[%emt 0:29:36]} Kf8 {[%emt 0:02:54]} 17. Nd2 {[%emt 0:06:56]} h6 {[%emt 0:23:05]} 18. Qxg4 {[%emt 0:03:21]} Ne5 {[%emt 0:02:57]} 19. Bxe7+ {[%emt 0:06:32]} Kxe7 {[%emt 0:00:02]} 20. Qe2 {[%emt 0:00:24]} Rxb2 {[%emt 0:00:11]} 21. Rab1 {[%emt 0:02:08]} Rab6 {[%emt 0:01:00]} 22. Rxb2 {[%emt 0:11:41]} Rxb2 {[%emt 0:00:02]} 23. Rb1 {[%emt 0:02:13]} Rc2 {[%emt 0:00:28]} 24. Nd1 {[%emt 0:04:06]} Qxa4 {[%emt 0:01:11]} 25. Ne3 {[%emt 0:00:12]} Rxd2 {[%emt 0:02:00]} 26. Rb7+ {[%emt 0:00:01]} Ke8 {[%emt 0:00:20]} 27. Qxd2 {[%emt 0:01:47]} Qxe4+ {[%emt 0:00:02]} 28. Kh3 {[%emt 0:04:19]} Nf3 {[%emt 0:00:10]} 0-1

[Event "NED-ch U20 Youth 2019"]
[Site "Assen"]
[Date "2019.04.28"]
[Round "1.3"]
[White "Gijsen, William"]
[Black "De Boer, Eelke"]
[Result "0-1"]
[ECO "B92"]
[WhiteElo "2041"]
[BlackElo "2338"]
[Annotator "NA"]
[PlyCount "70"]
[EventDate "2019.04.28"]
[EventType "swiss"]
[EventCountry "NED"]
[SourceTitle "playchess.com"]
[Source "ChessBase"]
[SourceQuality "1"]
[TimeControl "40/5400+30:1800+30"]

1. e4 {[%emt 0:00:00]} c5 {[%emt 0:00:00]} 2. Nf3 {[%emt 0:00:00]} d6 {[%emt 0:00:00]} 3. d4 {[%emt 0:00:00]} cxd4 {[%emt 0:00:00]} 4. Nxd4 {[%emt 0:00:00]} Nf6 {[%emt 0:00:00]} 5. Nc3 {[%emt 0:00:00]} a6 {[%emt 0:00:00]} 6. Be3 {[%emt 0:00:53]} e5 {[%emt 0:00:15]} 7. Nb3 {[%emt 0:00:08]} Be6 {[%emt 0:00:07]} 8. Be2 {[%emt 0:00:25]} Be7 {[%emt 0:17:13]} 9. O-O {[%emt 0:05:14]} Nbd7 {[%emt 0:01:30]} 10. f4 {[%emt 0:01:40]} Rc8 {[%emt 0:00:38] B92: Sicilian Najdorf: 6 Be2} (10... exf4 11. Bxf4 Ne5 12. Qe1 O-O 13. Kh1 Re8 14. Rd1 Nfd7 15. Nc5 dxc5 16. Bxe5 Qb6 17. Bf4 Bf6 18. b3 Qb4 19. Nd5 Qxe1 20. Rfxe1 Bxd5 21. exd5 {0-1 (52) Efremov,A (2564)-Schmidt,M (2581) ICCF email 2015}) 11. f5 {[%emt 0:08:16]} Bc4 {[%emt 0:00:06]} 12. Bxc4 {[%emt 0:05:26]} Rxc4 {[%emt 0:00:07]} 13. Nd2 {[%emt 0:00:17]} Rc8 {[%emt 0:02:33]} 14. Qf3 {[%emt 0:02:05]} b5 {[%emt 0:06:18]} 15. a3 {[%emt 0:01:06]} a5 $146 {[%emt 0:20:28]} ({Predecessor:} 15... Nc5 16. Rad1 Na4 17. Nxa4 bxa4 {½-½ (54) Kalata,P (2187)-Tatarko,T (1970) Slovakia 2019}) 16. Nxb5 {[%emt 0:04:05]} Rc6 {[%emt 0:00:13]} 17. c3 Rxc3 {[%emt 0:00:31]} 18. Rac1 {[%emt 0:01:15]} Rxc1 {[%emt 0:04:00]} 19. Rxc1 {[%emt 0:00:55]} O-O {[%emt 0:00:08]} 20. Na7 {[%emt 0:07:46]} Nb8 {[%emt 0:01:54]} 21. Nc8 {[%emt 0:02:06]} Qd7 {[%emt 0:02:34]} 22. Nxe7+ {[%emt 0:01:08]} Qxe7 {[%emt 0:00:06]} 23. g4 {[%emt 0:17:38]} Qb7 {[%emt 0:06:53]} 24. g5 {[%emt 0:01:37]} Nfd7 {[%emt 0:00:06]} 25. f6 {[%emt 0:05:24]} Rc8 {[%emt 0:00:43]} 26. Rf1 {[%emt 0:03:23]} g6 {[%emt 0:00:18]} 27. Qh3 $17 {[%emt 0:00:47]} Nf8 {[%emt 0:00:07]} 28. Rb1 {[%emt 0:13:30]} Ne6 {[%emt 0:01:46]} 29. Qf3 {[%emt 0:02:23]} Nc6 {[%emt 0:04:13]} 30. h4 {[%emt 0:00:56]} Ncd4 {[%emt 0:00:41]} 31. Bxd4 {[%emt 0:01:40]} Nxd4 {[%emt 0:00:28]} 32. Qd3 {[%emt 0:01:13]} Qd7 {[%emt 0:08:16]} 33. Kf2 {[%emt 0:04:52]} Qg4 {[%emt 0:02:05]} 34. Rg1 {[%emt 0:03:05]} Qf4+ {[%emt 0:00:28]} 35. Kg2 {[%emt 0:00:32]} Rc2 {[%emt 0:00:09]} 0-1

[Event "NED-ch U20 Youth 2019"]
[Site "Assen"]
[Date "2019.04.28"]
[Round "1.4"]
[White "Halfhide, Sebastian"]
[Black "Van Hoorn, Geert"]
[Result "1-0"]
[ECO "A05"]
[WhiteElo "2274"]
[BlackElo "1965"]
[Annotator "NA"]
[PlyCount "123"]
[EventDate "2019.04.28"]
[EventType "swiss"]
[EventCountry "NED"]
[SourceTitle "playchess.com"]
[Source "ChessBase"]
[SourceQuality "1"]
[TimeControl "40/5400+30:1800+30"]

1. e4 {[%emt 0:00:00]} c5 {[%emt 0:00:00]} 2. Nf3 {[%emt 0:00:00]} d6 {[%emt 0:00:00]} 3. g3 {[%emt 0:00:10]} g6 {[%emt 0:00:41]} 4. Bg2 {[%emt 0:00:25]} Bg7 {[%emt 0:00:09]} 5. O-O {[%emt 0:01:15]} Nf6 {[%emt 0:00:26]} 6. d3 {[%emt 0:02:37]} O-O {[%emt 0:00:53]} 7. c3 {[%emt 0:01:02]} Nc6 {[%emt 0:02:38]} 8. a3 {[%emt 0:01:13]} Rb8 {[%emt 0:02:13] A05: Réti Opening: 1 Nf3 Nf6} 9. b4 {[%emt 0:04:19]} c4 $146 {[%emt 0:03:46]} ({Predecessor:} 9... b5 10. Re1 Bg4 11. h3 Bxf3 12. Bxf3 Nd7 13. Bg2 Qc7 14. Be3 a5 15. bxc5 Nxc5 16. Ra2 {0-1 (52) Ivanisevic,I (2638)-Kryakvin,D (2560) Minsk 2017}) 10. dxc4 {[%emt 0:12:03]} Nxe4 {[%emt 0:00:21]} 11. Bb2 {[%emt 0:00:35]} Nf6 {[%emt 0:06:24]} 12. Nbd2 {[%emt 0:02:42]} Be6 {[%emt 0:01:54]} 13. Nd4 {[%emt 0:05:56]} Nxd4 {[%emt 0:01:23]} 14. cxd4 {[%emt 0:00:08]} d5 {[%emt 0:00:01]} 15. c5 {[%emt 0:01:03]} Qd7 {[%emt 0:02:15]} 16. Re1 {[%emt 0:01:28]} Qb5 {[%emt 0:10:46]} 17. Bf1 {[%emt 0:10:00]} Qd7 {[%emt 0:02:38]} 18. b5 {[%emt 0:03:50]} Rfe8 {[%emt 0:01:47]} 19. Rc1 {[%emt 0:03:31]} Bh3 {[%emt 0:02:38]} 20. Bd3 {[%emt 0:03:11]} Nh5 {[%emt 0:09:00]} 21. Nb3 {[%emt 0:08:03]} f6 {[%emt 0:10:14]} 22. c6 {[%emt 0:10:45]} bxc6 {[%emt 0:01:29]} 23. Rxc6 {[%emt 0:01:04]} e5 {[%emt 0:04:36]} 24. Nc5 {[%emt 0:05:07]} Qf7 {[%emt 0:01:59]} 25. a4 {[%emt 0:01:16]} e4 {[%emt 0:00:49]} 26. Be2 {[%emt 0:13:31]} f5 {[%emt 0:01:25]} 27. Bxh5 {[%emt 0:00:52]} gxh5 {[%emt 0:01:58]} 28. Qc1 {[%emt 0:01:03]} f4 {[%emt 0:07:39]} 29. Qxf4 {[%emt 0:00:55]} Qxf4 {[%emt 0:00:22]} 30. gxf4 {[%emt 0:00:01]} Rf8 {[%emt 0:00:09]} 31. Re3 {[%emt 0:00:36]} Bf5 {[%emt 0:06:32]} 32. Rb3 {[%emt 0:01:43]} Kh8 {[%emt 0:02:17]} 33. Rc7 {[%emt 0:01:04]} Bh6 {[%emt 0:04:27]} 34. Bc1 {[%emt 0:00:09]} Ra8 {[%emt 0:02:31]} 35. Rc6 {[%emt 0:01:37]} Bg7 {[%emt 0:01:02]} 36. Be3 {[%emt 0:00:11]} Bh3 {[%emt 0:01:41]} 37. Bc1 {[%emt 0:01:22]} Bg4 {[%emt 0:01:20]} 38. h3 {[%emt 0:01:27]} Bf3 {[%emt 0:00:43]} 39. Be3 {[%emt 0:00:40]} Rg8 {[%emt 0:02:59]} 40. Kf1 {[%emt 0:00:14]} Bf8 {[%emt 0:01:42]} 41. f5 {[%emt 0:11:32]} Bg2+ {[%emt 0:02:29]} 42. Ke2 {[%emt 0:01:20]} Bxh3 {[%emt 0:00:56]} 43. f6 {[%emt 0:00:22]} Bg4+ {[%emt 0:10:32]} 44. Kd2 {[%emt 0:00:22]} h4 {[%emt 0:01:37]} 45. Bf4 {[%emt 0:02:53]} h3 {[%emt 0:03:28]} 46. Ne6 {[%emt 0:07:19]} Rg6 {[%emt 0:04:30]} 47. Nxf8 {[%emt 0:04:48]} Rxf8 {[%emt 0:00:38]} 48. Be5 {[%emt 0:00:08]} h5 {[%emt 0:00:58]} 49. a5 {[%emt 0:01:07]} Kh7 {[%emt 0:04:27]} 50. b6 {[%emt 0:00:36]} axb6 {[%emt 0:02:35]} 51. axb6 {[%emt 0:00:11]} e3+ {[%emt 0:02:23]} 52. Kxe3 {[%emt 0:02:49]} h2 {[%emt 0:00:51]} 53. Bxh2 {[%emt 0:00:14]} Rgxf6 {[%emt 0:00:17]} 54. Rxf6 {[%emt 0:01:24]} Rxf6 {[%emt 0:00:04]} 55. Bf4 {[%emt 0:00:51]} Bc8 {[%emt 0:01:58]} 56. b7 $18 {[%emt 0:00:20]} Bxb7 {[%emt 0:00:02]} 57. Rxb7+ {[%emt 0:00:02]} Kg6 {[%emt 0:00:07]} 58. Rd7 {[%emt 0:00:36]} Rf5 {[%emt 0:01:00]} 59. Rd6+ {[%emt 0:00:14]} Kg7 {[%emt 0:00:36]} 60. Be5+ {[%emt 0:00:13]} Kh7 {[%emt 0:00:05]} 61. Rxd5 {[%emt 0:00:11]} h4 {[%emt 0:00:06]} 62. Rd8 {[%emt 0:00:48]} 1-0

[Event "NED-ch U20 Youth 2019"]
[Site "Assen"]
[Date "2019.04.28"]
[Round "1.5"]
[White "Emans, Job"]
[Black "Mesman, Edwyn"]
[Result "0-1"]
[ECO "D87"]
[WhiteElo "1945"]
[BlackElo "2224"]
[Annotator "NA"]
[PlyCount "102"]
[EventDate "2019.04.28"]
[EventType "swiss"]
[EventCountry "NED"]
[SourceTitle "playchess.com"]
[Source "ChessBase"]
[SourceQuality "1"]
[TimeControl "40/5400+30:1800+30"]

1. d4 {[%emt 0:00:00]} Nf6 {[%emt 0:00:00]} 2. c4 {[%emt 0:00:00]} g6 {[%emt 0:00:00]} 3. Nc3 {[%emt 0:00:00]} d5 {[%emt 0:00:00]} 4. cxd5 {[%emt 0:00:09]} Nxd5 {[%emt 0:00:00]} 5. e4 {[%emt 0:00:11]} Nxc3 {[%emt 0:00:04]} 6. bxc3 {[%emt 0:00:04]} Bg7 {[%emt 0:00:07]} 7. Bc4 {[%emt 0:00:15]} c5 {[%emt 0:00:54]} 8. Ne2 {[%emt 0:00:37]} Nc6 {[%emt 0:01:10]} 9. Be3 {[%emt 0:00:52]} O-O {[%emt 0:00:34]} 10. O-O {[%emt 0:00:55]} Bg4 {[%emt 0:00:14]} 11. f3 {[%emt 0:02:31]} Bd7 {[%emt 0:00:33]} 12. Rb1 {[%emt 0:06:48]} Qc7 {[%emt 0:03:28]} 13. Bd3 {[%emt 0:19:39] [#] D87: Exchange Grünfeld: Classical Line: Variations without ...cxd4} Rab8 $146 {[%emt 0:10:50]} ({Predecessor:} 13... Rfd8 14. Qd2 a6 15. f4 e6 16. dxc5 Na5 17. Nd4 e5 18. fxe5 Qxe5 19. Qb2 Rac8 20. Qb4 Qxc5 21. Qxc5 Rxc5 {0-1 (48) Nakamura,H (2758)-Svidler,P (2755) Moscow 2011}) 14. Qd2 {[%emt 0:03:46]} Rfc8 {[%emt 0:14:07]} 15. Rfc1 {[%emt 0:05:13]} Na5 {[%emt 0:04:37]} 16. Bh6 {[%emt 0:13:45]} Bh8 {[%emt 0:02:40]} 17. Bf4 {[%emt 0:00:51]} e5 {[%emt 0:01:42]} 18. Bg3 {[%emt 0:00:16]} c4 {[%emt 0:26:06]} 19. Bc2 {[%emt 0:01:55]} Re8 {[%emt 0:00:22]} 20. Rd1 {[%emt 0:07:58]} Rbd8 {[%emt 0:03:06]} 21. Bh4 {[%emt 0:02:28]} Rb8 {[%emt 0:09:02]} 22. dxe5 {[%emt 0:04:00]} Be6 {[%emt 0:01:43]} 23. f4 {[%emt 0:06:22]} Bg4 {[%emt 0:00:43]} 24. h3 {[%emt 0:02:11]} Bxe2 {[%emt 0:00:41]} 25. Qxe2 {[%emt 0:00:03]} b5 {[%emt 0:00:04]} 26. Rd5 {[%emt 0:02:14]} a6 {[%emt 0:00:04]} 27. Rbd1 {[%emt 0:00:18]} Nb7 {[%emt 0:00:46]} 28. Qf2 {[%emt 0:03:40]} Bg7 {[%emt 0:00:39]} 29. Kh1 {[%emt 0:05:00]} Qc6 {[%emt 0:00:10]} 30. Qd4 {[%emt 0:04:49]} Bf8 {[%emt 0:00:57]} 31. Bf6 {[%emt 0:01:54]} a5 {[%emt 0:02:27]} 32. f5 {[%emt 0:00:47]} Nc5 {[%emt 0:09:11]} 33. Qe3 {[%emt 0:01:02]} b4 {[%emt 0:00:50]} 34. Rd6 {[%emt 0:00:31]} Qc7 {[%emt 0:00:05]} 35. R1d5 {[%emt 0:00:51]} Rec8 {[%emt 0:00:09]} 36. Qg5 {[%emt 0:04:40]} b3 {[%emt 0:01:48]} 37. Bb1 {[%emt 0:00:26]} b2 {[%emt 0:00:20]} 38. Rd8 {[%emt 0:00:59]} Rxd8 {[%emt 0:02:03]} 39. Bxd8 {[%emt 0:00:14]} Qc6 {[%emt 0:02:08]} 40. Qd2 {[%emt 0:01:07]} a4 {[%emt 0:04:55]} 41. Rd4 {[%emt 0:14:59]} Nd3 {[%emt 0:02:13]} 42. e6 {[%emt 0:02:11]} fxe6 {[%emt 0:13:35]} 43. fxg6 {[%emt 0:00:53]} e5 {[%emt 0:00:19]} 44. gxh7+ {[%emt 0:03:23]} Kxh7 {[%emt 0:00:14]} 45. Rd5 {[%emt 0:00:23]} Rb7 {[%emt 0:00:20]} 46. Qg5 {[%emt 0:03:35]} Rf7 {[%emt 0:04:13]} 47. Qh5+ {[%emt 0:02:07]} Kg8 {[%emt 0:00:22]} 48. Kh2 $19 {[%emt 0:05:41]} Qh6 {[%emt 0:02:30]} 49. Qg4+ {[%emt 0:00:43]} Rg7 {[%emt 0:00:31]} 50. Qe2 {[%emt 0:00:47]} Nf4 {[%emt 0:01:23]} 51. Qxb2 {[%emt 0:00:34]} Rxg2+ {[%emt 0:00:46]} 0-1

[Event "NED-ch U20 Youth 2019"]
[Site "Assen"]
[Date "2019.04.28"]
[Round "1.6"]
[White "Van Dael, Siem"]
[Black "Van Doren, Bas"]
[Result "1-0"]
[ECO "A31"]
[WhiteElo "2206"]
[BlackElo "1945"]
[Annotator "NA"]
[PlyCount "71"]
[EventDate "2019.04.28"]
[EventType "swiss"]
[EventCountry "NED"]
[SourceTitle "playchess.com"]
[Source "ChessBase"]
[SourceQuality "1"]
[TimeControl "40/5400+30:1800+30"]

1. e4 {[%emt 0:00:00]} c5 {[%emt 0:00:00]} 2. Nf3 {[%emt 0:00:00]} e6 {[%emt 0:00:00]} 3. d4 {[%emt 0:00:00]} cxd4 {[%emt 0:00:00]} 4. Nxd4 {[%emt 0:00:00]} a6 {[%emt 0:00:00]} 5. c4 {[%emt 0:00:00]} Nf6 {[%emt 0:00:00]} 6. Nc3 {[%emt 0:00:05]} Qc7 {[%emt 0:00:02]} 7. a3 {[%emt 0:02:59]} b6 {[%emt 0:00:31]} 8. Be3 {[%emt 0:00:45]} Bb7 {[%emt 0:00:44]} 9. f3 {[%emt 0:00:21]} d6 {[%emt 0:01:35]} 10. Qd2 {[%emt 0:00:28]} Nbd7 {[%emt 0:04:05]} 11. Rc1 {[%emt 0:01:15]} Be7 {[%emt 0:02:27]} 12. Be2 {[%emt 0:00:21]} O-O {[%emt 0:01:47]} 13. O-O {[%emt 0:00:38]} Rac8 {[%emt 0:01:40]} 14. b4 {[%emt 0:00:38]} Qb8 {[%emt 0:05:07]} 15. Rfd1 {[%emt 0:02:48]} Bd8 {[%emt 0:05:20]} 16. Nb3 {[%emt 0:04:54]} Bc7 {[%emt 0:01:08] A31: Symmetrical English: 2 Nf3 Nf6 3 d4} 17. Kh1 {[%emt 0:00:16]} Rfe8 {[%emt 0:04:14]} 18. Bf4 {[%emt 0:12:29]} Ne5 {[%emt 0:05:01]} (18... d5 19. Bxc7 Rxc7 20. cxd5 exd5 21. exd5 Nxd5 22. Nxd5 Bxd5 23. Nd4 b5 24. Bf1 Rxc1 25. Rxc1 {½-½ (40) Yu,Y (2738)-Karthikeyan,M (2578) Moscow 2017}) 19. Bxe5 {[%emt 0:02:18]} dxe5 {[%emt 0:00:07]} 20. c5 {[%emt 0:00:09]} b5 {[%emt 0:09:13]} 21. a4 {[%emt 0:05:23]} bxa4 {[%emt 0:03:37]} 22. Nxa4 {[%emt 0:00:08]} Bc6 {[%emt 0:00:40]} 23. Nb2 {[%emt 0:00:33]} Bb5 {[%emt 0:16:55]} 24. Bxb5 {[%emt 0:07:39]} Qxb5 {[%emt 0:01:09] [#]} 25. Nc4 $146 {[%emt 0:16:14]} ({Predecessor:} 25. Qc3) 25... Rb8 {[%emt 0:03:34]} 26. Nd6 {[%emt 0:00:06]} Bxd6 {[%emt 0:00:44]} 27. cxd6 {[%emt 0:00:05]} Nd7 {[%emt 0:06:47]} 28. Nc5 $2 {[%emt 0:01:05]} ({White should try} 28. Na5 $18) 28... Red8 {[%emt 0:01:23]} 29. Nxd7 {[%emt 0:01:48]} Rxd7 {[%emt 0:01:17]} 30. Rc5 {[%emt 0:01:16]} Qb6 {[%emt 0:01:28]} 31. Qc3 $11 {[%emt 0:01:35]} f6 {[%emt 0:06:24]} 32. Rc6 {[%emt 0:06:02]} Qxb4 {[%emt 0:05:50]} 33. Rc8+ {[%emt 0:00:09]} Kf7 {[%emt 0:00:06]} 34. Qc6 {[%emt 0:00:14]} Rbb7 {[%emt 0:00:59]} 35. Rb8 {[%emt 0:00:45]} Qb5 {[%emt 0:03:54]} 36. Qxb7 {[%emt 0:00:51]} 1-0

[Event "NED-ch U20 Youth 2019"]
[Site "Assen"]
[Date "2019.04.28"]
[Round "1.7"]
[White "Ghebreab, Elnathan"]
[Black "Van Randtwijk, Mick"]
[Result "1-0"]
[ECO "B23"]
[WhiteElo "1882"]
[BlackElo "2168"]
[Annotator "NA"]
[PlyCount "89"]
[EventDate "2019.04.28"]
[EventType "swiss"]
[EventCountry "NED"]
[SourceTitle "playchess.com"]
[Source "ChessBase"]
[SourceQuality "1"]
[TimeControl "40/5400+30:1800+30"]

1. e4 {[%emt 0:00:00]} c5 {[%emt 0:00:00]} 2. Nc3 {[%emt 0:00:00]} d6 {[%emt 0:00:00]} 3. f4 {[%emt 0:00:09]} g6 {[%emt 0:00:14]} 4. Nf3 {[%emt 0:00:24]} Bg7 {[%emt 0:00:17]} 5. Bc4 {[%emt 0:00:24]} Nc6 {[%emt 0:00:33]} 6. O-O {[%emt 0:00:25]} e6 {[%emt 0:00:11]} 7. d4 {[%emt 0:01:26]} cxd4 {[%emt 0:06:33]} 8. Nb5 {[%emt 0:00:36]} Nge7 {[%emt 0:00:46]} 9. Bb3 {[%emt 0:06:30]} O-O {[%emt 0:02:17]} 10. Nbxd4 {[%emt 0:03:22]} a6 {[%emt 0:07:09]} 11. Be3 {[%emt 0:15:03]} Qc7 {[%emt 0:03:41]} 12. Qe1 {[%emt 0:06:59]} d5 {[%emt 0:11:29]} 13. Nxc6 {[%emt 0:26:08]} bxc6 {[%emt 0:04:08]} 14. Bc5 {[%emt 0:03:47]} dxe4 {[%emt 0:03:39]} 15. Ne5 {[%emt 0:09:05]} Rd8 {[%emt 0:03:41]} 16. Qxe4 {[%emt 0:07:40]} Bb7 $18 {[%emt 0:00:44]} ({Black should try} 16... a5 $14) 17. Nxf7 {[%emt 0:00:49]} Re8 {[%emt 0:07:32]} 18. Nd6 {[%emt 0:07:17]} Nd5 {[%emt 0:03:05]} 19. Nxe8 {[%emt 0:00:03]} Rxe8 {[%emt 0:00:14]} 20. Bd4 {[%emt 0:01:13]} Bf8 {[%emt 0:01:40]} 21. Bxd5 {[%emt 0:01:29]} cxd5 {[%emt 0:00:08]} 22. Qe5 {[%emt 0:00:10]} Qxe5 {[%emt 0:00:52]} 23. fxe5 {[%emt 0:01:36]} Rc8 {[%emt 0:00:43]} 24. c3 {[%emt 0:00:24]} a5 {[%emt 0:00:36]} 25. b3 {[%emt 0:01:17]} Ba3 {[%emt 0:02:42]} 26. Rf6 {[%emt 0:00:53]} Rc6 {[%emt 0:02:38]} 27. Raf1 {[%emt 0:00:48]} Be7 {[%emt 0:01:14]} 28. Rf7 {[%emt 0:00:57]} Rc7 {[%emt 0:00:03]} 29. g4 {[%emt 0:00:52]} Bc6 {[%emt 0:01:13]} 30. R7f3 {[%emt 0:02:15]} Rb7 {[%emt 0:00:45]} 31. Kg2 {[%emt 0:00:18]} Rb8 {[%emt 0:03:49]} 32. Kg3 {[%emt 0:01:06]} g5 {[%emt 0:01:49]} 33. Be3 {[%emt 0:01:06]} Be8 {[%emt 0:01:39]} 34. h4 {[%emt 0:00:38]} gxh4+ {[%emt 0:01:29]} 35. Kh3 {[%emt 0:00:10]} Bg6 {[%emt 0:01:47]} 36. Bd4 {[%emt 0:01:43]} Bg5 {[%emt 0:02:51]} 37. Be3 {[%emt 0:00:24]} Be7 {[%emt 0:00:23]} 38. Bd4 {[%emt 0:00:12]} Bg5 {[%emt 0:00:14]} 39. Bc5 {[%emt 0:00:39]} Rb5 {[%emt 0:03:35]} 40. Bd6 {[%emt 0:00:33]} a4 {[%emt 0:02:01]} 41. Rf8+ {[%emt 0:30:30]} Kg7 {[%emt 0:30:06]} 42. Ra8 {[%emt 0:00:00]} Bd3 {[%emt 0:00:00]} 43. Rff8 {[%emt 0:00:00]} Bh6 {[%emt 0:00:00]} 44. Ra7+ {[%emt 0:00:00]} Kg6 {[%emt 0:00:00]} 45. Rg8+ {[%emt 0:00:00]} 1-0

[Event "NED-ch U20 Youth 2019"]
[Site "Assen"]
[Date "2019.04.28"]
[Round "1.8"]
[White "Elgersma, Simon"]
[Black "Achuthan, Dylan"]
[Result "1-0"]
[ECO "B30"]
[WhiteElo "2137"]
[BlackElo "1863"]
[Annotator "NA"]
[PlyCount "93"]
[EventDate "2019.04.28"]
[EventType "swiss"]
[EventCountry "NED"]
[SourceTitle "playchess.com"]
[Source "ChessBase"]
[SourceQuality "1"]
[TimeControl "40/5400+30:1800+30"]

1. e4 {[%emt 0:00:00]} c5 {[%emt 0:00:00]} 2. Nf3 {[%emt 0:00:00]} Nc6 {[%emt 0:00:00]} 3. Bb5 {[%emt 0:00:05]} e6 {[%emt 0:00:24]} 4. O-O {[%emt 0:03:50]} Nge7 {[%emt 0:01:36]} 5. Re1 {[%emt 0:00:21]} a6 {[%emt 0:04:33]} 6. Bxc6 {[%emt 0:00:10]} Nxc6 {[%emt 0:00:09]} 7. d4 {[%emt 0:00:07]} cxd4 {[%emt 0:03:56]} 8. Nxd4 {[%emt 0:00:14]} Qc7 {[%emt 0:03:12]} 9. Nxc6 {[%emt 0:08:30]} bxc6 {[%emt 0:09:25]} 10. Nc3 {[%emt 0:05:11]} Be7 $11 {[%emt 0:03:14]} 11. e5 {[%emt 0:15:06]} c5 {[%emt 0:05:13]} 12. Qg4 {[%emt 0:03:37]} Bb7 {[%emt 0:24:52]} 13. Ne4 {[%emt 0:15:18]} Qxe5 {[%emt 0:24:19]} 14. Bf4 {[%emt 0:00:58]} h5 {[%emt 0:03:06]} 15. Qf3 {[%emt 0:09:56]} Bxe4 {[%emt 0:06:09]} 16. Rxe4 {[%emt 0:00:19]} Qd5 {[%emt 0:01:06]} 17. Rd1 {[%emt 0:00:41]} Qc6 {[%emt 0:00:28]} 18. Qe2 {[%emt 0:07:32]} g6 {[%emt 0:03:55]} 19. Be5 {[%emt 0:03:44]} Rh7 {[%emt 0:00:30]} 20. c4 {[%emt 0:03:51]} Rd8 {[%emt 0:01:05]} 21. Rf4 {[%emt 0:01:52]} d6 {[%emt 0:02:35]} 22. Bc3 {[%emt 0:03:41]} Bg5 {[%emt 0:00:37]} 23. Rf3 {[%emt 0:01:17]} Be7 {[%emt 0:00:15]} 24. a3 {[%emt 0:02:53]} Rd7 {[%emt 0:00:47]} 25. b4 {[%emt 0:00:19]} cxb4 {[%emt 0:00:31]} 26. axb4 {[%emt 0:00:19]} Rc7 {[%emt 0:00:15]} 27. b5 {[%emt 0:01:44]} Qxc4 {[%emt 0:00:43]} 28. Qxc4 {[%emt 0:00:29]} Rxc4 {[%emt 0:00:06]} 29. bxa6 {[%emt 0:00:02]} e5 {[%emt 0:00:56]} 30. a7 {[%emt 0:00:52]} Rc8 {[%emt 0:00:18]} 31. Rb1 {[%emt 0:00:11]} Kd7 {[%emt 0:00:41]} 32. Rb7+ {[%emt 0:01:43]} Ke6 {[%emt 0:00:29]} 33. Rb8 {[%emt 0:00:07]} Rhh8 {[%emt 0:00:20]} 34. a8=Q {[%emt 0:00:12]} Rxb8 {[%emt 0:00:08]} 35. Qa2+ {[%emt 0:00:05]} d5 {[%emt 0:00:16]} 36. Qa6+ {[%emt 0:05:51]} Kd7 {[%emt 0:01:16]} 37. g3 {[%emt 0:00:52]} d4 {[%emt 0:00:32]} 38. Rxf7 {[%emt 0:02:00]} dxc3 {[%emt 0:00:30]} 39. Qa7+ {[%emt 0:00:06]} Kc6 {[%emt 0:00:27]} 40. Rxe7 {[%emt 0:00:36]} Rhc8 {[%emt 0:00:33]} 41. Qa6+ {[%emt 0:06:23]} Kc5 {[%emt 0:04:08]} 42. Rxe5+ {[%emt 0:04:03]} Kb4 {[%emt 0:01:37]} 43. Qa2 {[%emt 0:01:18]} c2 {[%emt 0:09:36]} 44. Qb2+ {[%emt 0:00:48]} Ka4 {[%emt 0:00:03]} 45. Re4+ {[%emt 0:00:12]} Ka5 {[%emt 0:00:12]} 46. Qa2+ {[%emt 0:00:35]} Kb5 {[%emt 0:00:56]} 47. Qb3+ {[%emt 0:00:08]} 1-0